[Event "Charlotte CC Fall GM-ALTO 2024"]
[Site "Charlotte"]
[Date "2024.11.23"]
[Round "1.1"]
[White "Wang, Tianqi"]
[Black "Stremavicius, Titas"]
[Result "0-1"]
[Annotator "TA"]
[ECO "A13"]
[WhiteElo "2323"]
[BlackElo "2545"]
[PlyCount "98"]
[EventDate "2024.11.22"]
[EventType "tourn"]
[EventCountry "USA"]
[SourceTitle "playchess.com"]
[Source "ChessBase"]
[SourceQuality "1"]
[TimeControl "5400+30"]

{[%evp 10,98,27,24,15,28,6,27,18,19,8,13,14,16,27,26,26,23,33,7,8,16,5,8,12,9,28,13,22,14,29,14,15,12,32,4,14,10,14,10,0,0,0,0,0,0,8,0,0,-8,-8,-12,0,-20,-14,-90,0,0,0,0,0,0,0,-22,0,0,0,0,0,0,0,-30,-39,-25,-41,-76,-80,-83,-87,-122,-122,-227,-238,-219,-234,-230,-227,-726,-716,-29975,-1214]} 1. c4 {[%emt 0:09:00]} e6 {[%emt 0:00:24]} 2. g3 {[%emt 0:00:07]} d5 {[%emt 0:00:09]} 3. Bg2 {[%emt 0:00:05]} Nf6 {[%emt 0:00:12]} 4. Nf3 {[%emt 0:00:07]} d4 {[%emt 0:00:13]} 5. O-O {[%emt 0:00:22]} Nc6 {[%emt 0:00:08]} 6. d3 {[%emt 0:03:30]} Bc5 {[%emt 0:00:09]} 7. Nbd2 {[%emt 0:00:57]} O-O {[%emt 0:00:16]} 8. Nb3 {[%emt 0:00:10]} Be7 {[%emt 0:00:07] White has an edge.} 9. e3 {[%emt 0:00:12]} dxe3 {[%emt 0:00:14]} 10. Bxe3 {[%emt 0:00:11]} Ng4 {[%emt 0:00:06]} 11. Bc5 {[%emt 0:08:32]} Rb8 {[%emt 0:00:19]} 12. Bxe7 {[%emt 0:03:38]} Nxe7 {[%emt 0:04:41]} 13. d4 {[%emt 0:11:59]} b6 {[%emt 0:00:18]} 14. Qc2 {[%emt 0:00:35]} Bb7 {[%emt 0:06:52]} 15. Rad1 {[%emt 0:00:37]} Nf6 {[%emt 0:04:11]} 16. Rfe1 {[%emt 0:00:49]} Qd6 {[%emt 0:00:09]} 17. Nbd2 {[%emt 0:15:37]} Rfd8 {[%emt 0:08:36]} 18. Ne5 {[%emt 0:02:21]} Bxg2 {[%emt 0:08:38]} (18... Qxd4 $2 19. Nb3 $18) 19. Kxg2 {[%emt 0:00:10]} b5 {[%emt 0:00:29]} 20. cxb5 {[%emt 0:16:23]} Rxb5 {[%emt 0:01:15][%cal Od6b6]} 21. Ndf3 {[%emt 0:00:07]} h6 {[%emt 0:00:37]} 22. Rc1 {[%emt 0:00:44]} Nfd5 {[%emt 0:08:15]} 23. Qe2 {[%emt 0:03:23]} Qa6 {[%emt 0:06:42]} 24. a3 {[%emt 0:00:57]} Rb6 {[%emt 0:07:07]} 25. Nd3 {[%emt 0:06:03]} Nf5 {[%emt 0:03:16]} 26. Nc5 {[%emt 0:07:47]} Qxe2 {[%emt 0:13:46]} 27. Rxe2 {[%emt 0:00:05]} g5 {[%emt 0:00:14]} 28. Rd2 {[%emt 0:01:05]} f6 {[%emt 0:02:53]} 29. h3 {[%emt 0:09:27]} Kf7 30. b4 {[%emt 0:00:00]} h5 {[%emt 0:01:37]} 31. Nb3 {[%emt 0:00:00]} h4 {[%emt 0:04:40]} 32. gxh4 {[%emt 0:00:00] [#]} (32. Rd3 $11) 32... Nxh4+ {[%emt 0:04:34]} ({Of course not} 32... gxh4 $6 33. Kh2 $11) (32... Rh8 $1 $17 33. Kh2 (33. hxg5 Nf4+ 34. Kf1 Rxh3 $17) 33... Nxh4 (33... gxh4 34. Rg1 $11)) 33. Nxh4 $11 {[%emt 0:00:00]} gxh4 {[%emt 0:00:07]} 34. Kf3 {[%emt 0:00:00]} Rg8 {[%emt 0:00:30]} 35. Rdc2 {[%emt 0:00:00]} Rg5 {[%emt 0:00:30]} 36. Rc5 {[%emt 0:00:00]} Rb8 {[%emt 0:00:30]} 37. Nd2 {[%emt 0:00:00]} Rf5+ {[%emt 0:00:30]} 38. Ke2 {[%emt 0:00:00]} Rf4 {[%emt 0:00:30]} 39. Nf3 {[%emt 0:00:00]} Rg8 {[%emt 0:00:30]} 40. Rxc7+ {[%emt 0:00:00]} Nxc7 {[%emt 0:00:30]} 41. Rxc7+ {[%emt 0:00:00][%mdl 4096] Endgame. KRR-KRN} Kg6 $1 {[%emt 0:16:16]} 42. Ke3 {[%emt 0:02:53]} Kf5 {[%emt 0:00:00]} 43. Rh7 {[%emt 0:00:26] And now Rh5+ would win.} e5 {[%emt 0:00:00] Hoping for ...Rc8.} 44. Nxh4+ {[%emt 0:01:21]} Ke6 {[%emt 0:00:00]} 45. Nf3 {[%emt 0:00:08] [#]} (45. dxe5 $17 {might work better.} fxe5 46. Rh5) 45... Rc8 $1 $19 {[%emt 0:00:00] aiming for ...Rc3+.} 46. dxe5 {[%emt 0:01:03]} fxe5 {[%emt 0:02:30] Strongly threatening ...Rc3+.} 47. Rh6+ {[%emt 0:01:05]} Kd5 {[%emt 0:00:00][%mdl 1024] White must now prevent ...Rc3+. Black has strong compensation.} 48. Ke2 $2 {[%emt 0:01:36]} (48. Ne1) 48... Rc2+ {[%emt 0:00:00]} 49. Kd1 {[%emt 0:00:45]} Rxf2 {[%emt 0:00:00] Weighted Error Value: White=0.34/Black=0.05 (flawless) .  Mistake:       	White=3     	Black=1      Inaccurate:     	White=5     	---        OK:         	White=16    	Black=16     Best:        	White=2     	Black=4      Strong:       	---       	Black=2} (49... Ra2 $142 50. Nxe5 Kxe5 51. Kc1 Rfxf2 (51... Raxf2 $2 52. Rg6 $19) 52. Kb1 Rab2+ (52... Rxa3 $2 53. Rg6 $19) (52... Rfb2+ {gets mated.} 53. Kc1 Rh2 54. Kb1 Rab2+ 55. Ka1 Rbg2 56. Rh5+ Kd4 57. Rh4+ Kd3 58. Rd4+ Kxd4 59. b5 Rh1#) 53. Kc1 Rbe2 (53... Rfc2+ {is a self mate.} 54. Kd1 Rg2 55. Kc1 Rbf2 56. Rh5+ Ke4 57. Rh4+ Ke3 58. Rd4 Kxd4 59. h4 Rg1#) 54. Kd1 Ra2 55. Ke1 Rfb2 56. Rh5+ Ke4 (56... Kd4 57. Rh4+ Kd3 58. Rd4+ Kxd4 59. h4 Rb1#) 57. Rh4+ Kd3 58. Rd4+ Kxd4 59. h4 Rb1#) 0-1

[Event "Charlotte CC Fall GM-ALTO 2024"]
[Site "Charlotte"]
[Date "2024.11.23"]
[Round "1.2"]
[White "Griffith, Kyron"]
[Black "Gedajlovic, Max"]
[Result "0-1"]
[Annotator "TA"]
[ECO "C01"]
[WhiteElo "2407"]
[BlackElo "2377"]
[PlyCount "116"]
[EventDate "2024.11.22"]
[EventType "tourn"]
[EventCountry "USA"]
[SourceTitle "playchess.com"]
[Source "ChessBase"]
[SourceQuality "1"]
[TimeControl "5400+30"]

{[%evp 30,116,0,-104,-93,-98,-85,-54,-48,-158,-104,-102,-104,-100,-83,-114,-100,-313,-175,-189,-180,-319,-317,-372,-341,-495,-486,-488,-475,-718,-708,-647,-486,-623,-631,-643,-633,-595,-327,-373,0,-556,-464,-666,-330,-631,-299,-303,-296,-251,-223,-243,-245,-251,-247,-367,-364,-368,-371,-541,-532,-1018,-1018,-925,-815,-913,-947,-1418,-1199,-1652,-1480,-1715,-1598,-1499,-1243,-4614,-1364,-29971,-29974,-29973,-29975,-29974,-29976,-29973,-29977,-29977,-29978,-29976,-29977]} 1. e4 {[%emt 1:31:00]} e6 {[%emt 1:31:00]} 2. d4 {[%emt 0:00:30]} d5 {[%emt 0:00:30]} 3. Nc3 {[%emt 0:00:30]} Bb4 {[%emt 0:00:30]} 4. exd5 {[%emt 0:00:30]} exd5 {[%emt 0:00:30]} 5. Bd3 {[%emt 0:00:30]} Nf6 {[%emt 0:00:30]} 6. a3 {[%emt 0:00:30]} Bd6 {[%emt 0:00:30]} 7. Bg5 {[%emt 0:00:30]} c6 {[%emt 0:00:30]} 8. Qf3 {[%emt 0:00:30]} Be7 {[%emt 0:00:30]} 9. h3 {[%emt 0:00:30]} O-O {[%emt 0:00:30]} 10. Nge2 {[%emt 0:00:30]} Re8 {[%emt 0:00:30]} 11. O-O-O {[%emt 0:00:30]} b5 {[%emt 0:00:30]} 12. Ng3 {[%emt 0:00:30]} h6 {[%emt 0:00:30]} 13. Bf4 {[%emt 0:00:30]} Na6 {[%emt 0:00:30]} 14. Rhe1 {[%emt 0:00:30]} b4 {[%emt 0:00:30]} 15. axb4 {[%emt 0:00:30]} Nxb4 {[%emt 0:00:30]} 16. Nf5 {[%emt 0:00:30]} (16. Bf5 $11 {remains equal.}) 16... Nxd3+ $17 {[%emt 0:00:30]} 17. Qxd3 {[%emt 0:00:30]} Bxf5 {[%emt 0:00:30]} 18. Qxf5 {[%emt 0:00:30]} Qa5 {[%emt 0:00:30]} 19. f3 {[%emt 0:00:30]} (19. Kb1 $15) 19... Bb4 {[%emt 0:00:30]} (19... Qa1+ $142 20. Kd2 Qxb2) 20. Rxe8+ $17 {[%emt 0:00:30]} Rxe8 {[%emt 0:00:30]} 21. Nb1 {[%emt 0:00:30]} Re6 {[%emt 0:00:30]} 22. g4 {[%emt 0:00:30]} Ne4 {[%emt 0:00:30]} 23. Be5 $2 {[%emt 0:00:30]} (23. fxe4 $17 g6 24. Qxe6 fxe6 25. c3) 23... Nf2 {[%emt 0:00:30]} (23... Nd6 $142 24. Qd3 Nc4) 24. Rf1 $19 {[%emt 0:00:30]} Nxh3 {[%emt 0:00:30]} 25. g5 {[%emt 0:00:30]} (25. c3 $142 Qb5 26. Nd2) 25... Nxg5 $19 {[%emt 0:00:30]} 26. Rg1 {[%emt 0:00:30]} Bf8 {[%emt 0:00:30]} 27. Nc3 {[%emt 0:00:30]} (27. Qg4) 27... Qa1+ $19 {[%emt 0:00:30]} 28. Nb1 {[%emt 0:00:30]} c5 {[%emt 0:00:30]} 29. f4 {[%emt 0:00:30]} (29. Rf1 $142) 29... Nf3 $19 {[%emt 0:00:30]} 30. Rf1 {[%emt 0:00:30]} Nxd4 {[%emt 0:00:30]} 31. Bxd4 {[%emt 0:00:30]} cxd4 {[%emt 0:00:30]} 32. Qxd5 {[%emt 0:00:30]} Rd6 {[%emt 0:00:30]} 33. Qc4 {[%emt 0:00:30]} Qa5 {[%emt 0:00:30]} 34. Nd2 {[%emt 0:00:30]} Qa1+ {[%emt 0:00:30]} (34... Re6 $142 35. Qxd4 Bc5) 35. Nb1 $19 {[%emt 0:00:30]} h5 {[%emt 0:00:30]} 36. Rf3 {[%emt 0:00:30]} (36. Re1 $142) 36... Qa6 {[%emt 0:00:30]} (36... Re6 $142 {( -> ...Re1+)} 37. Rf1 g6) 37. Nd2 $2 {[%emt 0:00:30]} (37. Qxa6 Rxa6 38. Kd2) 37... Qxc4 {[%emt 0:00:30]} (37... Re6 $142 {[%cal Re6e1]} 38. Rf1 Qa1+ 39. Nb1 g6) 38. Nxc4 $19 {[%emt 0:00:30]} Rf6 39. Kd2 {[%emt 0:00:30]} g6 {[%emt 0:01:00]} 40. Kd3 {[%emt 0:00:30]} Bh6 {[%emt 0:00:30]} 41. Ke4 {[%emt 0:00:30]} Bg7 {[%emt 0:00:30]} 42. Ne5 {[%emt 0:00:30]} (42. Rh3 $142) 42... g5 $19 {[%emt 0:00:30]} 43. f5 {[%emt 0:00:30]} Rb6 {[%emt 0:00:30]} 44. b3 {[%emt 0:00:30]} (44. Nc4 {was necessary.} Rb4 45. Kd3) 44... g4 $19 {[%emt 0:00:30]} 45. Rf1 {[%emt 0:00:30]} Bxe5 {[%emt 0:00:30]} 46. Kxe5 {[%emt 0:00:30]} g3 {[%emt 0:00:30]} 47. Kf4 {[%emt 0:00:30]} h4 {[%emt 0:00:30]} 48. Kg4 {[%emt 0:00:30]} d3 {[%emt 0:00:30]} 49. cxd3 {[%emt 0:00:30]} Rb4+ {[%emt 0:00:30]} (49... Rxb3 $2 50. Kxh4 Rxd3 51. Kh3 $19) 50. Kh3 {[%emt 0:00:30]} Kg7 {[%emt 0:00:30]} (50... Rxb3 51. Rf4 $17) 51. Ra1 {[%emt 0:00:30]} Kf6 {[%emt 0:00:30]} (51... Rxb3 $2 52. Kxh4 g2 (52... Rxd3 53. Kh3 $11) 53. Kg3 $19) 52. Rxa7 {[%emt 0:00:30]} Rxb3 {[%emt 0:00:30]} ({Less strong is} 52... Kxf5 53. Rxf7+ Ke5 54. Rg7 $17 (54. Rh7 Rf4 $17)) 53. Kxh4 {[%emt 0:00:30]} g2 {[%emt 0:00:30]} ({Worse is} 53... Kxf5 54. Rxf7+ Ke6 55. Rg7 $11) 54. Ra1 {[%emt 0:00:30]} Rxd3 {[%emt 0:00:30]} 55. Kg4 {[%emt 0:00:30]} Rd8 {[%emt 0:00:30]} 56. Kf4 {[%emt 0:00:30]} Rg8 {[%emt 0:00:30]} 57. Rg1 {[%emt 0:00:30]} Rg5 {[%emt 0:00:30]} 58. Ke4 {[%emt 0:00:30]} Rg4+ {[%emt 0:00:30]} (58... Rxf5 $2 59. Rxg2 Re5+ 60. Kf4 $19) 0-1

[Event "Charlotte CC Fall GM-ALTO 2024"]
[Site "Charlotte"]
[Date "2024.11.23"]
[Round "1.3"]
[White "Williams, Justus"]
[Black "Ouellet, Maili-Jade"]
[Result "0-1"]
[Annotator "TA"]
[ECO "E05"]
[WhiteElo "2355"]
[BlackElo "2352"]
[PlyCount "54"]
[EventDate "2024.11.22"]
[EventType "tourn"]
[EventCountry "USA"]
[SourceTitle "playchess.com"]
[Source "ChessBase"]
[SourceQuality "1"]
[TimeControl "5400+30"]

{[%evp 13,54,2,10,5,11,0,19,20,28,22,43,-22,-18,-29,0,-118,-113,-251,-237,-243,-209,-241,-144,-106,-29,-34,-50,-201,-229,-251,-254,-237,-235,-319,-327,-338,-344,-330,-234,-261,-163,-618,-597]} 1. c4 {[%emt 0:03:00]} e6 {[%emt 0:00:04]} 2. Nf3 {[%emt 0:00:38]} d5 {[%emt 0:00:04]} 3. g3 {[%emt 0:02:15]} Nf6 {[%emt 0:00:05]} 4. d4 {[%emt 0:00:27]} Be7 {[%emt 0:00:04]} 5. Bg2 {[%emt 0:00:08]} O-O {[%emt 0:00:06]} 6. O-O {[%emt 0:00:25]} dxc4 {[%emt 0:00:02]} 7. Qc2 {[%emt 0:05:53]} b5 {[%emt 0:00:08]} 8. a4 {[%emt 0:00:09]} b4 {[%emt 0:00:04]} 9. Nfd2 {[%emt 0:00:09]} (9. Qxc4 Ba6 10. Qc2 Nbd7 $11) 9... Nd5 {[%emt 0:00:12]} 10. Nxc4 {[%emt 0:00:30] The position is equal.} (10. Qxc4 Ba6 11. Qc2 c5 (11... Bxe2 12. Re1 $15) 12. dxc5 Nd7 $19) 10... c5 {[%emt 0:00:13]} 11. dxc5 {[%emt 0:03:37]} Ba6 {[%emt 0:00:29][%cal Ob8c6]} 12. Bf4 {[%emt 0:06:49]} ({Better is} 12. Ne3 $14) 12... Bxc5 $11 {[%emt 0:04:31]} 13. Rd1 {[%emt 0:02:11]} Nd7 {[%emt 0:02:51] ...Rc8 would now be deadly.} 14. Nbd2 {[%emt 0:02:42] [#]} (14. Bxd5 $11 exd5 15. Rxd5) 14... Rc8 $1 $17 {[%emt 0:02:27] Strongly threatening ...g5.} 15. Qe4 {[%emt 0:02:32] [#]} (15. Bxd5 $17 exd5 16. Qf5) 15... g5 $1 $19 {[%emt 0:10:14]} 16. Be5 {[%emt 0:03:27]} f5 {[%emt 0:04:12]} 17. Qf3 {[%emt 0:00:19]} N5b6 {[%emt 0:06:22]} (17... g4 $19 18. Qb3 Bxf2+ (18... Nxe5 $2 19. Nxe5 Bxf2+ 20. Kxf2 $19) 19. Kxf2 Nxe5) 18. Bd6 $17 {[%emt 0:12:05]} Bxd6 {[%emt 0:28:56]} (18... Bxc4 19. Bxf8 Bxf8 (19... Kxf8 20. Qh5 $14) 20. a5 $11) (18... Nxc4 $17 19. Nxc4 Bxc4 20. Bxf8 Kxf8 (20... Bxf8 21. Rac1 $17)) 19. Nxd6 $11 {[%emt 0:00:23]} Ne5 $1 $36 {[%emt 0:00:19][%csl LRd6,LRf3][%mdl 2048] Black is pushing.} 20. Qh5 {[%emt 0:00:16]} ({White has to play} 20. Qe3 $1 $15 Qxd6 21. Nc4) 20... Qxd6 $19 {[%emt 0:01:41]} 21. Nc4 {[%emt 0:00:33]} Qc7 {[%emt 0:02:45]} (21... Nexc4 22. Qxg5+ Kf7 23. Rxd6 Nxd6 24. Bf3 $18) 22. Qxg5+ {[%emt 0:07:27]} Ng6 {[%emt 0:01:26]} 23. Nd6 {[%emt 0:01:05]} Rcd8 {[%emt 0:01:17]} 24. Nb5 {[%emt 0:00:26]} Rxd1+ {[%emt 0:09:34]} (24... Qe7 25. Qc1 $19) 25. Rxd1 {[%emt 0:00:03]} Qg7 {[%emt 0:00:24]} 26. Nd4 {[%emt 0:01:51]} Qf6 {[%emt 0:02:29]} (26... Nxa4 27. Nxe6 Qf6 (27... Qxb2 $2 28. Nxf8 Qxe2 29. Bd5+ Kg7 30. Ne6+ $18) 28. Qh6 Bxe2 (28... Qxe6 $2 29. Bd5 $18) 29. Bd5 $14 (29. Nxf8 Qxf8 30. Qxf8+ Kxf8 $15)) 27. Qe3 {[%emt 0:01:41]} (27. Qxf6 Rxf6 28. b3) 27... Rd8 {[%emt 0:01:24] Weighted Error Value: White=0.67/Black=0.19 (very precise) .  Mistake:       	White=5     	Black=2      Inaccurate:     	White=1     	Black=1      OK:         	White=5     	Black=7      Best:        	White=1     	Black=4      Strong:       	---       	Black=2} (27... Nxa4 28. Nxe6 Rc8 (28... Nxb2 29. Rd7 $11) 29. Qxa7 $17 (29. Rd7 f4 $11)) 0-1

[Event "Charlotte CC Fall GM-ALTO 2024"]
[Site "Charlotte"]
[Date "2024.11.23"]
[Round "1.4"]
[White "Mitrabha, Guha"]
[Black "Fernandez, Daniel Howard"]
[Result "1-0"]
[Annotator "TA"]
[ECO "A34"]
[WhiteElo "2511"]
[BlackElo "2503"]
[PlyCount "101"]
[EventDate "2024.11.22"]
[EventType "tourn"]
[EventCountry "USA"]
[SourceTitle "playchess.com"]
[Source "ChessBase"]
[SourceQuality "1"]
[TimeControl "5400+30"]

{[%evp 13,101,-1,16,0,52,14,17,15,62,55,48,56,54,57,56,47,47,46,35,40,46,48,41,44,42,44,43,52,45,49,79,84,87,88,84,90,88,67,65,63,126,118,116,50,58,50,68,55,62,42,78,77,87,79,112,115,122,122,125,119,114,134,129,85,90,93,89,88,93,8,1,0,0,0,0,0,29959,29960,29967,29969,29976,29977,29977,29978,29978,29979,29980,29978,29978,29979]} 1. c4 {[%emt 0:12:13]} g6 {[%emt 0:00:03]} 2. Nf3 {[%emt 0:00:32]} Nf6 {[%emt 0:00:09]} 3. Nc3 {[%emt 0:00:08]} d5 {[%emt 0:00:27]} 4. cxd5 {[%emt 0:00:37]} Nxd5 {[%emt 0:00:03]} 5. g3 {[%emt 0:00:21]} Bg7 {[%emt 0:04:02]} 6. Bg2 {[%emt 0:00:07]} c5 {[%emt 0:08:27]} 7. h4 $1 {[%emt 0:00:46][%mdl 4] outshines the older 7.0-0. A34: Symmetrical English: 2 Nc3, lines with ...d5.} Nc6 {[%emt 0:06:36]} 8. h5 {[%emt 0:00:31]} e6 {[%emt 0:07:17]} (8... c4 $11) 9. Ne4 $146 {[%emt 0:01:42]} ({Predecessor:} 9. h6 Bf6 10. Ne4 Be7 11. b4 cxb4 12. Bb2 O-O 13. Rc1 Bd7 14. Nc5 Rc8 15. O-O {1-0 Ding,L (2714)-Vachier Lagrave,M (2719) Biel Breisacher Memorial 2013 (4)}) 9... b6 {[%emt 0:00:31]} 10. h6 {[%emt 0:13:42]} Bf6 {[%emt 0:02:05]} (10... Bf8 $11 {should be considered.}) 11. Nxf6+ $14 {[%emt 0:14:15]} Qxf6 {[%emt 0:00:06]} 12. d4 {[%emt 0:00:27]} Nxd4 {[%emt 0:07:34]} 13. Nxd4 {[%emt 0:00:38]} Qxd4 {[%emt 0:00:12]} 14. Qxd4 {[%emt 0:01:52]} cxd4 {[%emt 0:00:03]} 15. Rh4 {[%emt 0:01:28]} d3 {[%emt 0:00:57]} 16. Rd4 {[%emt 0:03:06]} (16. exd3 Bb7 17. b3 Kd7 $16) 16... dxe2 {[%emt 0:04:43]} 17. Rxd5 $1 {[%emt 0:01:50]} exd5 {[%emt 0:00:24]} 18. Bxd5 {[%emt 0:00:02]} Rb8 {[%emt 0:00:21]} 19. Bf4 $1 {[%emt 0:00:09]} (19. Kxe2 $2 O-O 20. a4 Ba6+ 21. Ke1 Bb7 $19) 19... Bb7 $1 {[%emt 0:01:19]} 20. Bxb8 {[%emt 0:00:10]} Bxd5 {[%emt 0:00:02]} 21. Bxa7 {[%emt 0:02:52]} ({Reject} 21. Kxe2 Kd7 22. Bf4 Rc8 $15) 21... b5 {[%emt 0:00:01]} 22. Kxe2 {[%emt 0:00:50]} Ke7 {[%emt 0:01:15]} 23. Bc5+ {[%emt 0:01:30]} Ke6 {[%emt 0:00:11]} 24. Kd3 {[%emt 0:00:21]} Kf5 {[%emt 0:01:10]} 25. a3 {[%emt 0:02:50]} Rc8 {[%emt 0:00:36]} 26. Kd4 {[%emt 0:03:36]} Bb3 {[%emt 0:00:02]} (26... Bc4 $14) 27. Re1 {[%emt 0:01:16]} Kg5 {[%emt 0:02:40]} 28. Rh1 {[%emt 0:01:28]} (28. Kc3 $16 {aiming for Re5+.} Rxc5+ 29. Kxb3) 28... Kf5 {[%emt 0:03:14]} 29. Rc1 {[%emt 0:07:24]} g5 {[%emt 0:00:33]} 30. Re1 {[%emt 0:06:34]} Kg6 {[%emt 0:00:52]} 31. Re7 {[%emt 0:00:37]} Kxh6 {[%emt 0:01:29]} 32. Rb7 {[%emt 0:00:09]} Bc4 {[%emt 0:02:20]} 33. Rb6+ {[%emt 0:00:29]} Kh5 {[%emt 0:01:07]} 34. a4 $1 {[%emt 0:00:18]} Rd8+ {[%emt 0:02:26]} 35. Bd6 {[%emt 0:01:21]} Kg4 {[%emt 0:00:10]} 36. a5 {[%emt 0:02:06]} ({Much weaker is} 36. axb5 $6 Bxb5 37. Ke5 Bc4 $11) 36... h5 {[%emt 0:06:10]} 37. a6 {[%emt 0:00:07]} Bf1 {[%emt 0:03:50]} 38. f3+ {[%emt 0:09:09]} Kxf3 {[%emt 0:00:14]} 39. a7 {[%emt 0:00:09]} Kg4 {[%emt 0:08:51] [#]} 40. Ke5 $1 {[%emt 0:06:23]} Bg2 {[%emt 0:03:44]} 41. Rb8 {[%emt 0:00:49]} ({Better is} 41. Rxb5 $16 {Rb8 would now be deadly.} Re8+ 42. Kd4) 41... Rd7 $11 {[%emt 0:00:21]} 42. a8=Q {[%emt 0:00:08]} Bxa8 {[%emt 0:00:06]} 43. Rxa8 {[%emt 0:00:02]} Kxg3 {[%emt 0:00:10]} 44. Kd5+ {[%emt 0:02:12]} Kg2 $2 {[%emt 0:02:36][%mdl 8192] [#]} ({Avoid the trap} 44... Kg4 $2 45. Kc6 Rxd6+ 46. Kxd6 $18) (44... Rxd6+ $11 45. Kxd6 h4) 45. Kc6 $1 {[%emt 0:00:22]} Rxd6+ {[%emt 0:00:11]} 46. Kxd6 {[%emt 0:00:01]} g4 {[%emt 0:00:36]} 47. Rh8 {[%emt 0:00:51]} f5 {[%emt 0:03:06]} 48. Ke5 {[%emt 0:00:08]} h4 {[%emt 0:01:34]} 49. Rxh4 {[%emt 0:01:09]} Kg3 {[%emt 0:00:02]} 50. Rh1 {[%emt 0:00:11]} f4 {[%emt 0:00:11]} 51. Rg1+ {[%emt 0:00:22]} 1-0

[Event "Charlotte CC Fall GM-ALTO 2024"]
[Site "Charlotte"]
[Date "2024.11.23"]
[Round "1.5"]
[White "Padmini, Rout"]
[Black "Stefanov, Emil"]
[Result "1-0"]
[Annotator "TA"]
[ECO "C55"]
[WhiteElo "2334"]
[BlackElo "2362"]
[PlyCount "85"]
[EventDate "2024.11.22"]
[EventType "tourn"]
[EventCountry "USA"]
[SourceTitle "playchess.com"]
[Source "ChessBase"]
[SourceQuality "1"]
[TimeControl "5400+30"]

{[%evp 13,85,39,44,28,25,29,42,26,31,36,35,29,32,25,28,28,37,22,46,52,87,0,0,0,23,-14,-14,-18,-11,-8,-14,-14,-16,-12,-16,-12,-13,-9,0,0,38,36,36,29,27,29,52,38,59,37,64,38,42,46,72,69,114,106,111,89,245,245,245,245,969,956,935,913,29972,29973,29979,29980,29985,29986]} 1. e4 {[%emt 0:00:21]} e5 {[%emt 0:00:10]} 2. Nf3 {[%emt 0:00:10]} Nc6 {[%emt 0:00:10]} 3. Bc4 {[%emt 0:00:07]} Nf6 {[%emt 0:00:20]} 4. d3 {[%emt 0:00:26]} Be7 {[%emt 0:00:25]} 5. O-O {[%emt 0:00:26]} O-O {[%emt 0:00:10]} 6. Re1 {[%emt 0:00:39]} d6 {[%emt 0:00:11]} 7. a4 {[%emt 0:01:13]} Be6 {[%emt 0:00:14]} 8. Bxe6 {[%emt 0:03:25]} fxe6 {[%emt 0:00:11]} 9. c3 {[%emt 0:00:51]} a5 {[%emt 0:01:04]} 10. Qb3 {[%emt 0:03:06] White is slightly better.} Qd7 {[%emt 1:32:35]} 11. Nbd2 {[%emt 0:01:51]} h6 {[%emt 0:00:00]} 12. Nc4 {[%emt 0:01:53]} (12. Qxb7 $2 {loses.} Rfb8 $19) 12... b6 {[%emt 0:00:00]} 13. Be3 {[%emt 0:10:45]} Rf7 {[%emt 0:00:00]} 14. Qb5 {[%emt 0:07:32]} Raf8 {[%emt 0:00:00]} 15. b4 {[%emt 0:05:37]} axb4 {[%emt 0:00:00]} 16. cxb4 {[%emt 0:00:38]} Ng4 {[%emt 0:00:00]} 17. h3 {[%emt 0:23:02]} ({White should try} 17. Rec1 $16) 17... Nxe3 $11 {[%emt 0:00:00]} 18. Rxe3 {[%emt 0:00:10]} Ra8 {[%emt 0:00:00]} 19. a5 {[%emt 0:12:44]} d5 {[%emt 0:00:00]} 20. exd5 {[%emt 0:04:03]} exd5 {[%emt 0:00:00]} 21. Rc1 {[%emt 0:12:27]} dxc4 {[%emt 0:00:00]} 22. Qxc4 {[%emt 0:01:04]} Bxb4 {[%emt 0:00:00] ...Bc5 would now be deadly.} 23. axb6 $1 {[%emt 0:02:06] [#]} cxb6 $1 {[%emt 0:00:00] White must now prevent ...Bc5.} 24. Qxc6 {[%emt 0:00:33]} Qxc6 {[%emt 0:01:15]} 25. Rxc6 {[%emt 0:00:03]} Ra1+ {[%emt 0:02:43]} 26. Kh2 {[%emt 0:00:17]} Bc5 {[%emt 0:00:32]} 27. Rxe5 {[%emt 0:02:35]} Bxf2 {[%emt 0:00:41]} 28. Re2 {[%emt 0:02:28] Inhibits Ra2.} Bc5 {[%emt 0:00:56]} 29. d4 {[%emt 0:00:42]} Ba3 {[%emt 0:02:44]} 30. Rxb6 {[%emt 0:02:04]} Bc1 {[%emt 0:00:15]} 31. Rb3 {[%emt 0:00:13]} Bf4+ {[%emt 0:00:18]} 32. g3 {[%emt 0:00:05]} Bd6 {[%emt 0:00:21]} 33. Kg2 {[%emt 0:00:31]} Rd1 {[%emt 0:01:01]} 34. h4 {[%emt 0:00:22]} Rf5 {[%emt 0:00:39]} 35. Re6 {[%emt 0:01:16]} Bf8 {[%emt 0:00:32]} 36. g4 {[%emt 0:01:58]} Rd5 {[%emt 0:00:27] This costs Black the game.} (36... Rf4 $16) 37. Rb8 $18 {[%emt 0:00:36] [#] And now Ree8 would win.} Kf7 {[%emt 0:00:13]} 38. Re2 {[%emt 0:00:32]} R1xd4 $2 {[%emt 0:00:46]} (38... Bd6 39. Rb7+ Kg8) 39. Nxd4 {[%emt 0:00:08]} Rxd4 {[%emt 0:00:08]} 40. Rf2+ {[%emt 0:00:05]} Kg6 {[%emt 0:00:18]} 41. Rbxf8 {[%emt 0:00:26] White mates.} Rxg4+ {[%emt 0:00:06]} 42. Kh3 {[%emt 0:00:05]} h5 {[%emt 0:00:05]} 43. Rg2 {[%emt 0:02:25] Weighted Error Value: White=0.08 (flawless) /Black=0.39.  Mistake:       	White=1     	Black=2      Inaccurate:     	White=2     	Black=4      OK:         	White=14    	Black=11     Best:        	White=1     	Black=2      Strong:       	White=1     	---} 1-0